Cogmind - Beta 15 @@@ ROGUE MODE // 2025.05.11 @ 20:46:37 Player: N.W.L. Result: Destroyed by 67-06W(R) with Subdweller Machine Gun Performance ------------- Evolutions (0) 0 Regions Visited (2) 400 Robots Destroyed (13) 65 Value Destroyed (385) 385 Prototype IDs (0) 0 Alien Tech Used (0) 0 Bonus (-14) -14 TOTAL SCORE: 836 Bonus ------- Friendly Fire -14 Cogmind --------- Core Integrity 0/250 Matter 225/300 Energy 170/170 System Corruption 1% Temperature Cool (0) Movement Rolling (110) Location -10/Subcaves Parts ------- > --- POWER (1) -------- Makeshift Power Source > --- PROPULSION (2) --- Subdweller Monowheel > --- UTILITY (2) ------ Improved Heat Sink > --- WEAPON (2) ------- Subdweller Machine Gun Battle Cannon > --- INVENTORY (5) ---- Light Ion Engine Subdweller Laser Barrage Gun Subdweller Shrapnel Launcher Multitool Peak State ------------ > --- POWER ------------ Makeshift Power Source > --- PROPULSION ------- Subdweller Monowheel > --- UTILITY ---------- Improved Heat Sink > --- WEAPON ----------- Subdweller Machine Gun Battle Cannon > --- INVENTORY -------- Light Ion Engine Subdweller Laser Barrage Gun Subdweller Shrapnel Launcher Multitool [Rating: 14] Favorites ----------- Power Light Ion Engine Engine Light Ion Engine Propulsion Light Treads Treads Light Treads Wheel Subdweller Monowheel Utility Scrap Shield Device Seismic Detector Protection Scrap Shield Weapon Subdweller Laser Energy Gun Subdweller Laser Ballistic Gun Subdweller Machine Gun Ballistic Cannon Battle Cannon Special Weapon Mining Laser Build | -11 -10 -10 ------- Run | Yrd Mat Sub Slots Evolved . | . . . Power . | . . . Propulsion . | . . . Utility . | . . . Weapon . | . . . Parts Attached 19 | 6 . 13 Power 3 | 1 . 2 Engine 3 | 1 . 2 Core . | . . . Reactor . | . . . Propulsion 4 | 2 . 2 Treads 3 | 2 . 1 Leg . | . . . Wheel 1 | . . 1 Hover . | . . . Flight . | . . . Utility 3 | 1 . 2 Device 2 | 1 . 1 Storage . | . . . Processor . | . . . Hackware . | . . . Protection 1 | . . 1 Artifact . | . . . Weapon 9 | 2 . 7 Energy Gun 5 | 2 . 3 Energy Cannon . | . . . Ballistic Gun 2 | . . 2 Ballistic Cannon 1 | . . 1 Launcher . | . . . Special Weapon 1 | . . 1 Impact Weapon . | . . . Slashing Weapon . | . . . Piercing Weapon . | . . . Special Melee Weapon . | . . . Unidentified Prototypes . | . . . Corrupted Parts 1 | . . 1 System Corruption 1 | . . 1 Parts Lost 7 | . . 7 Power . | . . . Propulsion 2 | . . 2 Utility 1 | . . 1 Weapon 4 | . . 4 Highest Loss Streak 5 | . . 5 To Critical Strikes . | . . . Average Backups 4 | 1 3 4 Power . | . 1 . Propulsion . | . . . Utility . | . . . Weapon 2 | 1 2 2 Tool/Special . | . . . Unused Backups 4 | . . 4 Power . | . . . Propulsion . | . . . Utility 1 | . . 1 Weapon 2 | . . 2 Tool/Special 1 | . . 1 Average Slot Usage (%) 81 | . 85 81 Engine 13 | . 14 13 Treads 25 | . 28 25 Wheel 1 | . . 1 Device 4 | . 14 3 Protection 8 | . . 9 Energy Gun 21 | . 28 21 Ballistic Gun 5 | . . 6 Peak Build Rating 14 | 6 6 14 Average Rating 9 | 4 6 10 On Entrance 4 | . 6 6 Naked Turns . | . . . Heaviest Build 29 | 8 8 29 Greatest Support 40 | 40 40 40 Greatest Overweight (x) . | . . . Average Overweight (x) . | . . . Largest Inventory Capacity 5 | 5 5 5 Average Capacity 5 | 5 5 5 Most Carried 5 | 3 3 5 Average Carried 4 | 1 3 4 Final Capacity 5 | 5 5 5 Final Carried 5 | 3 3 5 Class Distribution -------------------- 73% | Mutant 26% | Subdweller-Mutant Dominant Class ---------------- Mutant | -10/Materials Mutant | -10/Subcaves Resources | -11 -10 -10 ----------- Run | Yrd Mat Sub Matter Collected 382 | 260 . 122 Remotely . | . . . Salvage Created 536 | 102 71 363 Parts 30 | 3 6 21 Haulers Intercepted 1 | . 1 . Recyclers Shooed . | . . . Parts Field Recycled . | . . . Retrieved Matter . | . . . Parts Self-Destructed 9 | . . 9 Prevented . | . . . Kills | -11 -10 -10 ------- Run | Yrd Mat Sub Combat Hostiles Destroyed 9 | . . 9 Guns 9 | . . 9 Classes Destroyed 6 | 2 2 2 Builder 1 | . 1 . Tunneler 1 | 1 . . Hauler 1 | . 1 . Recycler 1 | 1 . . Sentry 1 | . . 1 Subdweller 8 | . . 8 Best Kill Streak 3 | 2 2 3 Combat Bots Only 3 | . . 3 Max Kills in Single Turn 1 | 1 1 1 Gunslinging . | . . . Exploded . | . . . Melee . | . . . Uniques/NPCs Destroyed . | . . . Combat | -11 -10 -10 -------- Run | Yrd Mat Sub Hostile Shots Fired 77 | . . 77 Missed 15 | . . 15 Hits 62 | . . 62 Projectile 62 | . . 62 AOE 2 | . . 2 Damage Taken 1392 | . . 1392 Core 254 | . . 254 Absorbed by Shields . | . . . Core Remaining (%) 100 | 100 . . Volleys Fired 54 | 4 3 47 Largest 2 | 2 2 2 Hottest 110 | 80 80 110 Shots Fired 93 | 8 6 79 Gun 86 | 8 6 72 Cannon 5 | . . 5 Launcher . | . . . Special 2 | . . 2 Kinetic 16 | . . 16 Thermal 51 | . . 51 Explosive . | . . . Electromagnetic 26 | 8 6 12 Robot Hit Streak 29 | 4 2 29 Robot Miss Streak 2 | 1 1 2 Penetration Max . | . . . Secondary Targets . | . . . Shots Hit Robots 77 | 5 3 69 Core Hits 24 | 2 3 19 Critical Kills . | . . . Critical Parts Destroyed . | . . . Critical Strikes 3 | . . 3 Burn 1 | . . 1 Destroy 2 | . . 2 Melee Attacks . | . . . Impact . | . . . Slashing . | . . . Piercing . | . . . Sneak Attacks . | . . . Combat Hostiles . | . . . Follow-up Attacks . | . . . Damage Inflicted 1197 | 70 54 1073 Guns 1111 | 70 54 987 Cannons 86 | . . 86 Explosions . | . . . Melee . | . . . Ramming . | . . . Kinetic 267 | . . 267 Thermal 738 | . . 738 Explosive . | . . . Electromagnetic 192 | 70 54 68 Impact . | . . . Slashing . | . . . Piercing . | . . . Highest Corruption 1 | . . 1 Average Corruption 1 | . . 1 Corruption Purged . | . . . Corruption Blocked . | . . . Effects 7 | . . 7 Message Errors 1 | . . 1 Energy Discharges 1 | . . 1 Parts Rejected 1 | . . 1 Data Loss (minor) 1 | . . 1 Data Loss (major) 2 | . . 2 Alerts 1 | . . 1 Overload Shots . | . . . Overflow Damage . | . . . Projectiles . | . . . Explosions . | . . . Melee . | . . . Knockbacks . | . . . Impact . | . . . Kinetic . | . . . Secondary . | . . . Self-Inflicted Damage . | . . . Shots . | . . . Rammed . | . . . Targets Rammed . | . . . Kicked . | . . . Crushed . | . . . Highest Temperature 54 | 18 54 7 Average Temperature 12 | 5 29 3 Received Heat Transfer 150 | . . 150 Siege Activations . | . . . Martial Activations . | . . . Shielding Activations . | . . . Robots Disrupted . | . . . Combat Hostiles . | . . . Robots Corrupted . | . . . Combat Hostiles . | . . . Parts Fried 2 | 1 1 . Impact Corruptions . | . . . Robots Melted . | . . . Combat Hostiles . | . . . Parts Melted 2 | . . 2 Heat Transferred 1463 | . . 1463 Parts Sabotaged . | . . . Parts Stolen . | . . . Parts Stripped . | . . . Power Chain Reactions . | . . . Alert | -11 -10 -10 ------- Run | Yrd Mat Sub Maximum Alert Level . | . . . Low Security (%) 100 | 100 100 . Level 1 . | . . . Level 2 . | . . . Level 3 . | . . . Level 4 . | . . . Level 5 . | . . . High Security . | . . . Max Security . | . . . Peak Influence 12 | 10 12 . Initial . | . . . Average 1 | 1 1 . Influence Increases 42 | 10 12 20 Destroy 0b10 Robot/C 20 | . . 20 Destroy 0b10 Robot/NC 20 | 10 10 . Destroy Leader 2 | . 2 . Influence Decreases 42 | 10 12 20 Time Decay 42 | 10 12 20 Squads Dispatched . | . . . Investigation . | . . . Extermination . | . . . Reinforcement . | . . . Assault . | . . . Garrison . | . . . Intercept . | . . . Searches Triggered . | . . . Construction Impeded . | . . . Haulers Reinforced . | . . . Active Scanning Responses . | . . . Cargo Convoy Interrupts . | . . . Stealth | -11 -10 -10 --------- Run | Yrd Mat Sub Distress Signals . | . . . Communications Jammed . | . . . Distress Signals . | . . . Times Spotted 13 | . . 13 Peak Tracking Total 2 | . 1 2 Tactical Retreats . | . . . Traps | -11 -10 -10 ------- Run | Yrd Mat Sub Traps Triggered . | . . . Indirectly . | . . . Trap Hack Attempts . | . . . Triggered . | . . . Disarmed . | . . . Reprogrammed . | . . . Reused 1 | . . 1 Traps Extracted . | . . . Installed 1 | . . 1 Triggered 1 | . . 1 Machines | -11 -10 -10 ---------- Run | Yrd Mat Sub Machines Disabled . | . . . Max in Single Turn . | . . . Machines Repaired . | . . . Machines Dismantled . | . . . Machines Sabotaged . | . . . Overloaded Fab Kills . | . . . Hacking | -11 -10 -10 --------- Run | Yrd Mat Sub Machines Accessed . | . . . Terminals . | . . . Fabricators . | . . . Repair Stations . | . . . Recycling Units . | . . . Scanalyzers . | . . . Garrison Access . | . . . Total Hacks . | . . . Successful . | . . . Failed . | . . . Catastrophic . | . . . Database Lockouts . | . . . Manual . | . . . Terminals . | . . . Fabricators . | . . . Repair Stations . | . . . Recycling Units . | . . . Scanalyzers . | . . . Garrison Access . | . . . Terminal Hacks . | . . . Fabricator Hacks . | . . . Repair Station Hacks . | . . . Recycling Unit Hacks . | . . . Scanalyzer . | . . . Garrison Access Hacks . | . . . Unauthorized Hacks . | . . . Terminals . | . . . Fabricators . | . . . Repair Stations . | . . . Recycling Units . | . . . Scanalyzers . | . . . Garrison Access . | . . . Data Cores Recovered . | . . . Used . | . . . Hacking Detections . | . . . Full Trace Events . | . . . Feedback Events . | . . . Feedback Blocked . | . . . Robot Schematics Acquired . | . . . Robots Built . | . . . Authchips . | . . . Time . | . . . Total Robot Build Rating . | . . . Part Schematics Acquired . | . . . Parts Built . | . . . Authchips . | . . . Time . | . . . Total Part Build Rating . | . . . Parts Repaired . | . . . Time . | . . . Parts Recycled . | . . . Recycled Matter . | . . . Retrieved Matter . | . . . Retrieved Components . | . . . Parts Scanalyzed . | . . . Part Schematics Acquired . | . . . Parts Damaged . | . . . Bothacking | -11 -10 -10 ------------ Run | Yrd Mat Sub Used RIF Installer . | . . . Robots Hacked . | . . . Non-combat . | . . . Combat . | . . . Robot Hacks Applied . | . . . Relay Couplers Released . | . . . Fabnet Peak Effective % . | . . . Robots Rewired . | . . . Allies Hacked . | . . . Hacks Repelled . | . . . Allies | -11 -10 -10 -------- Run | Yrd Mat Sub Total Allies . | . . . Largest Group . | . . . Highest-Rated Group . | . . . Highest-Rated Ally . | . . . Total Orders . | . . . Ally Attacks . | . . . Total Damage . | . . . Kills . | . . . Allies Corrupted . | . . . Allies Melted . | . . . Intel | -11 -10 -10 ------- Run | Yrd Mat Sub Active Infowar (turns) 529 | 53 152 324 Seismic 529 | 53 152 324 Robot Analysis Total . | . . . Derelict Logs Recovered 2 | . . 2 Drone Launches . | . . . Drone Recoveries . | . . . Exploration | -11 -10 -10 ------------- Run | Yrd Mat Sub Turns Passed 1850 | 96 152 1602 Spaces Moved 932 | 47 85 800 Core 2 | 2 . . Treads 833 | 45 85 703 Legs . | . . . Wheels 97 | . . 97 Hover . | . . . Flight . | . . . Fastest Speed 50 | 50 160 110 Average Speed 154 | 155 160 153 Slowest Speed 160 | 160 160 160 Overloaded Moves . | . . . Propulsion Burnouts . | . . . Robots Hopped . | . . . Potential Cave-ins . | . . . Cave-ins Triggered . | . . . Exploration Rate (%) 26 | 4 16 58 Regions Visited 2 Branch Regions 1 Pre-discovered Areas 1 | . . 1 Known Exits Taken . | . . . Unknown Exits Taken 2 | 1 1 . Scrap Searched 2 | . . 2 Spaces Dug . | . . . Terrain Destroyed . | . . . Melee . | . . . Projectile . | . . . AOE . | . . . Terrain Rammed . | . . . Walls Destroyed . | . . . Machines Disabled . | . . . Actions | -11 -10 -10 --------- Run | Yrd Mat Sub Total 1241 | 59 95 1087 Wait 208 | . 8 200 Move 930 | 46 84 800 Hop . | . . . Pick Up 11 | 3 . 8 Fast Attach 13 | 6 . 7 Attach 3 | . . 3 Detach 2 | . . 2 Swap 6 | . . 6 Drop 7 | . . 7 Fire 54 | 4 3 47 Melee . | . . . Ram . | . . . Kick . | . . . Crush . | . . . Escape Stasis . | . . . Rewire . | . . . Trap 1 | . . 1 Miscellaneous 6 | . . 6 Route ------- -11/Scrapyard -10/Materials -10/Subcaves (discovered 2 exits: [*Mat] / [*Scr]) History --------- Turn | Location | Event 10 | -11/Scrapyard | Discovered new exit (range 14) 97 | -11/Scrapyard | Entered Materials 98 | -10/Materials | Met a group of wandering Federalists 150 | -10/Materials | Discovered new exit (range 9) 249 | -10/Materials | Entered Subcaves 250 | -10/Subcaves | Continued accompanying wandering Federalists (6) 307 | -10/Subcaves | Build established: Mutant 405 | -10/Subcaves | A swath of the cavern ceiling suddenly collapsed 436 | -10/Subcaves | Lost 3 allies 506 | -10/Subcaves | Wandering Federalist uncovered a shortcut to Scraptown 525 | -10/Subcaves | Lost 3 allies 724 | -10/Subcaves | Discovered new exit (range 16) 919 | -10/Subcaves | Build established: Subdweller-Mutant 1197 | -10/Subcaves | Learned Materials stockpile data 1329 | -10/Subcaves | Learned location of Recycling (-8) 1399 | -10/Subcaves | Build established: Mutant 1698 | -10/Subcaves | Core integrity fell below 50% 1710 | -10/Subcaves | Core integrity fell below 20% 1738 | -10/Subcaves | Lost 5 parts (2n1u2w) 1851 | -10/Subcaves | Destroyed by 67-06W(R) with Subdweller Machine Gun Last Messages --------------- 01694_ Acquired Sub. Laser. 01695_ Spk. Treads destroyed. 01701_ W9-BUD(u) deconstructs Twisted Machinery. 01707_ Med. Laser destroyed. 01712_ 78-IQG(R) destroyed. 01718_ Acquired Sub. Monowheel. 01721_ Acquired 10 matter. 01723_ Subatomizers dissect the Disposable Heat Sink. 01725_ Acquired Sub. Machine Gun. 01728_ Acquired Lgt. Ion Engine. 01733_ Acquired 20 matter. 01750_ Subatomizers dissect the Disposable Heat Sink. 01763_ W9-BUD(u) deconstructs Twisted Machinery. 01767_ System corrupted: Substantial component data lost. 01812_ Dropped Broken Sub. Machine Gun. 01812_ Acquired Barrage Gun. 01829_ Dropped Sub. Machine Gun. 01829_ Acquired Battle Cannon. 01834_ Acquired Sub. Machine Gun. 01837_ C4-IJK(R) suffers critical hit (Destroy). Map ----- +----------------------------------------------------+ | | | | | ?????????????????????????????????????????????????? | | ?????????????????????????????????????????????????? | | ?????????????????????????????????????????????????? | | ?????????????????????????????????????????????????? | | ?????????????????????????????????????????????????? | | ?????????????????????????????????????????????????? | | ?????????????????????????????????????????????????? | | ?????????????????????????????????????????????????? | | ?????????????????????????????????????????????????? | | ?????????????????????????????????????????????????? | | ?????????????????????????????????????????????????? | | ?????????????????????????????????????????????????? | | ?????????????????????????????????????????????????? | | ?????????????????????????????????????????????????? | | ?????????????????????????????????????????????????? | | ?????????????????????????????????????????????????? | | ??????????? ??????????????????????????????????? | | ????????????? ????????????????????????????????? | | ??????????????# ???????????????????????????????? | | ??????????????# ?????????????????????????????? | | ??????????????# ]#?######????????????????????? | | ???????????????# #R## #????????????????????? | | ????????????????# R #????????????????????? | | ????????????????# #@ ####?????????????????? | | ????????????????# ### ##????????????????? | | ????????????????# ???# ###??????????????? | | ????????????????## ???### ##?????????????? | | ?????????????????#?????# #?????????????? | | ???????????????????????## #?????????????? | | ????????????????????????# #?????????????? | | ????????????????????##### ## ##?????????????? | | ????????????????????# #####??????????????? | | ????????????????????# #####?????????????? | | ????????????????????# #?????????????? | | ????????????????????# #?????????????? | | ????????????????????# [ ##?????????????? | | ????????????????????# ## #??????????????? | | ????????????????????# #?# ##??????????????? | | ????????????????????# #??# #???????????????? | | ????????????????????##???# ##??????????????? | | ?????????????????????????# ##?????????????? | | ?????????????????????????## #?????????????? | | ??????????????????????????## ##?????????????? | | ???????????????????????????##### #??????????????? | | ??????????????????????????????## #??????????????? | | ?????????????????????????????## ##?????????????? | | ????????????????????????????## #?????????????? | | ????????????????????????????# #?????????????? | +----------------------------------------------------+ Best States ------------- Heat Dissipation 39 Energy Generation 15 Energy Capacity 170 Matter Stores 300 Matter Capacity 300 Sight Range 16 Terrain Scan Density 10 Armor Coverage 800 Evasion (%) 40 Recoil Reduction 2 Item Schematics ----------------- None Robot Schematics ------------------ None Fabricated ------------ Nothing Repaired ---------- Nothing Alien Tech Used ----------------- None Achievements -------------- None Challenges ------------ None Game ------ Seed FluxThrusterThermoblaster Manual? 0 Play Time 00:20:08 Cumulative 488.6 hours Start 2025.05.09 @ 19:10:43 End 2025.05.11 @ 20:46:37 Sessions 5 Manual Loads 0 Difficulty Rogue Special Mode None Game No. 217 Rogue 217 Adventurer 0 Explorer 0 Win Type - Total 18 Types 10/2/6/0/0/0/0/0/0/0 Lore% 89 Gallery% 84 Achievement% 78 Wizard Run 0 Options --------- Layout 0 ASCII 0 Keyboard 1 Movement Numpad Keybinds 0 Fullscreen 2 Font 12/Smallcaps Map View 76x50 Zoom Use 0% Tactical HUD 1 Map Filters NONE Filters NONE Steam 1 RUN: 299ff7f9-1713-4a1e-8407-e220669c64de